bitfinex-derivatives/quotes_BTCF0:USTF0_20251208
["timestamp","ask_amount","ask_price","bid_price","bid_amount"]
[1765220614766,0.05715,89940.0,89939.0,0.0682788]
[1765220615063,0.00016674,89941.0,89940.0,0.07469]
[1765220615966,0.05731674,89941.0,89940.0,0.05716]
[1765220616763,0.0861087,89940.0,89939.0,0.002]
[1765220617471,0.05715,89934.0,89933.0,0.0682795]
[1765220617962,0.02727,89934.0,89933.0,0.0682795]
[1765220618668,0.02727,89934.0,89933.0,0.0712795]
[1765220619259,0.0682687,89940.0,89939.0,0.0682788]
[1765220619459,0.05715,89940.0,89939.0,0.0682788]
[1765220620570,0.05715,89940.0,89939.0,0.0692788]
[1765220620966,0.05715,89940.0,89939.0,0.0702788]
[1765220621570,0.07499,89940.0,89939.0,0.002]
[1765220621863,0.10181152,89940.0,89939.0,0.002]
[1765220622668,0.10181152,89940.0,89939.0,0.001]
[1765220622971,0.10181152,89940.0,89939.0,0.002]
[1765220623358,0.10181152,89940.0,89939.0,0.001]
[1765220623563,0.07364,89930.0,89929.0,0.01407627]
[1765220623872,0.07364,89930.0,89924.0,0.00011122]
[1765220623873,0.0690506,89925.0,89924.0,0.00011122]
[1765220624369,0.0690506,89925.0,89924.0,0.07148291]
[1765220624570,0.0690506,89925.0,89924.0,0.01375291]
[1765220624874,0.0690506,89925.0,89924.0,0.00011122]
[1765220625573,0.0690506,89925.0,89924.0,0.01395308]
[1765220625774,0.0690506,89925.0,89924.0,0.07168308]
[1765220626366,0.0111195,89934.0,89932.0,0.0688496]
[1765220626562,0.0395895,89934.0,89933.0,0.05773]
[1765220626771,0.0690495,89934.0,89933.0,0.05773]
[1765220627566,0.02847,89934.0,89933.0,0.05773]
[1765220627877,0.05809674,89941.0,89940.0,0.05773]
[1765220629271,0.01679,89940.0,89930.0,0.01646]
[1765220629471,0.05793,89937.0,89936.0,0.0688492]
[1765220629875,0.05793,89937.0,89936.0,0.05773]
[1765220630076,0.05793,89937.0,89936.0,0.02831]
[1765220630777,0.05993,89937.0,89936.0,0.02831]
[1765220631074,0.05993,89937.0,89936.0,0.05773]
[1765220631474,0.06093,89937.0,89936.0,0.05773]
[1765220631867,0.03147,89937.0,89936.0,0.05773]
[1765220632873,0.003,89937.0,89936.0,0.05773]
[1765220633374,0.0008332,89937.0,89936.0,0.05773]
[1765220633670,0.0395865,89958.0,89957.0,0.05773]
[1765220634076,0.0690465,89958.0,89957.0,0.05773]
[1765220634274,0.0690455,89966.0,89965.0,0.05773]
[1765220634476,0.0690465,89959.0,89958.0,0.05773]
[1765220636367,0.0770465,89959.0,89958.0,0.05773]
[1765220636670,0.0800465,89959.0,89958.0,0.05773]
[1765220637470,0.06893,89959.0,89958.0,0.05773]
[1765220638073,0.00016674,89974.0,89973.0,0.0688446]
[1765220639077,0.02847,89996.0,89995.0,0.0688419]
[1765220639381,0.02847,89996.0,89995.0,0.05773]
[1765220639779,0.05793,89996.0,89995.0,0.05773]
[1765220640175,0.06293,89996.0,89995.0,0.05773]
[1765220640575,0.05855,89988.0,89987.0,0.05621674]
[1765220641278,0.06355,89996.0,89995.0,0.05605]
[1765220641480,0.005,89996.0,89995.0,0.05605]
[1765220641781,0.03615,89996.0,89995.0,0.05605]
[1765220641982,0.007,89996.0,89995.0,0.05605]
[1765220642179,0.002,89996.0,89995.0,0.05605]
[1765220642682,0.06055,89996.0,89995.0,0.05605]
[1765220642868,0.06055,89996.0,89995.0,0.02866]
[1765220643477,0.06255,89996.0,89995.0,0.05605]
[1765220644175,0.004,89996.0,89995.0,0.05605]
[1765220645170,0.00016674,90004.0,89993.0,0.0111121]
[1765220645171,0.00016674,90004.0,90003.0,0.0671609]
[1765220645768,0.00016674,90004.0,90003.0,0.05605]
[1765220646388,0.00316674,90004.0,89994.0,0.23181001]
[1765220646572,0.0402616,89998.0,89997.0,0.02866]
[1765220646774,0.0696628,89988.0,89987.0,0.04150331]
[1765220647076,0.02915,89988.0,89987.0,0.07016331]
[1765220647384,0.0166,90002.0,89991.0,0.05605]
[1765220647974,0.00416674,90004.0,90003.0,0.05605]
[1765220648174,0.03331674,90004.0,90003.0,0.05605]
[1765220648376,0.0111117,89997.0,89996.0,0.05605]
[1765220648583,0.0696617,89997.0,89996.0,0.05605]
[1765220649080,0.001,90002.0,90001.0,0.05605]
[1765220649473,0.00216674,90004.0,90003.0,0.05605]
[1765220649876,0.00016674,90004.0,90003.0,0.05605]
[1765220650079,0.00016674,90004.0,89993.0,0.011112]
[1765220650080,0.0111113,90000.0,89993.0,0.011112]
[1765220650377,0.0696613,90000.0,89999.0,0.05605]
[1765220650583,0.0111126,89989.0,89988.0,0.07349]
[1765220650784,0.00016674,90004.0,89988.0,0.07349]
[1765220650785,0.0111123,89992.0,89991.0,0.05605]
[1765220651196,0.0111128,89988.0,89987.0,0.00016674]
[1765220651478,0.0696628,89988.0,89987.0,0.02882674]
[1765220651680,0.0862628,89988.0,89987.0,0.00016674]
[1765220651877,0.0696628,89988.0,89987.0,0.00016674]
[1765220652082,0.0862628,89988.0,89987.0,0.00016674]
[1765220653175,0.0862628,89988.0,89987.0,0.00316674]
[1765220653380,0.0111128,89988.0,89987.0,0.06172674]
[1765220653887,0.0652728,89988.0,89987.0,0.00316674]
[1765220654285,0.0652728,89988.0,89987.0,0.03244674]
[1765220654686,0.0652728,89988.0,89987.0,0.00316674]
[1765220655280,0.0652728,89988.0,89987.0,0.03244674]
[1765220655586,0.0652728,89988.0,89987.0,0.06172674]
[1765220655788,0.0652728,89988.0,89987.0,0.03244674]
[1765220656474,0.0652728,89988.0,89987.0,0.07283964]
[1765220656789,0.00016674,90004.0,89987.0,0.07283964]
[1765220656790,0.0111118,89997.0,89996.0,0.05856]
[1765220657476,0.0111109,90003.0,90002.0,0.05856]
[1765220657981,0.0111116,89998.0,89988.0,0.0179]
[1765220658182,0.0111116,89998.0,89997.0,0.05856]
[1765220658183,0.05416,89998.0,89997.0,0.05856]
[1765220658484,0.0381912,90001.0,90000.0,0.05856]
[1765220658696,0.0381912,90001.0,89987.0,0.00016674]
[1765220658697,0.0111125,89990.0,89989.0,0.05856]
[1765220659481,0.0652725,89990.0,89989.0,0.05856]
[1765220660282,0.02819124,89990.0,89989.0,0.05856]
[1765220661090,0.00211124,89990.0,89989.0,0.06156]
[1765220661485,0.04030374,89990.0,89989.0,0.06156]
[1765220661685,0.06738374,89990.0,89989.0,0.06156]
[1765220662692,0.00211124,89990.0,89989.0,0.06156]
[1765220667102,0.06738374,89990.0,89989.0,0.06156]
[1765220667301,0.06738374,89990.0,89989.0,0.003]
[1765220667989,0.06738374,89990.0,89989.0,0.06156]
[1765220668295,0.00211124,89990.0,89989.0,0.06156]
[1765220672202,0.00016674,90004.0,90003.0,0.0696709]
[1765220673396,0.00022242,90009.0,90003.0,0.0696709]
[1765220673597,2.42e-06,90009.0,90008.0,0.0696703]
[1765220674699,2.42e-06,90009.0,90008.0,0.0786703]
[1765220675893,2.42e-06,90009.0,90008.0,0.0816703]
[1765220681708,0.02708242,90009.0,90008.0,0.0816703]
[1765220682203,0.02708242,90009.0,90008.0,0.0786703]
[1765220682394,0.02708242,90009.0,90008.0,0.0816703]
[1765220683101,2.42e-06,90009.0,90008.0,0.0141103]
[1765220683296,2.42e-06,90009.0,90008.0,0.0221103]
[1765220684706,0.05801242,90009.0,90008.0,0.0794903]
[1765220685601,0.05801242,90009.0,90008.0,0.0764903]
[1765220685804,2.42e-06,90009.0,90008.0,0.0221103]
[1765220686106,2.42e-06,90009.0,90008.0,0.0141103]
[1765220686304,2.42e-06,90009.0,90008.0,0.0221103]
[1765220687508,0.05801242,90009.0,90008.0,0.011]
[1765220688008,0.05801242,90009.0,90008.0,0.06838]
[1765220688505,0.05801242,90009.0,90008.0,0.06738]
[1765220689500,2.42e-06,90009.0,90008.0,0.01]
[1765220689703,2.42e-06,90009.0,90008.0,0.009]
[1765220692415,2.42e-06,90009.0,90008.0,1.509]
[1765220692717,0.01807062,90040.0,90039.0,0.0684465]
[1765220692718,0.00111062,90040.0,90039.0,0.0684465]
[1765220693909,0.00211062,90040.0,90039.0,0.0684465]
[1765220694311,0.00016665,90049.0,90048.0,0.0684454]
[1765220695110,0.0111017,90078.0,90064.0,0.0684434]
[1765220695314,0.00094358,90065.0,90064.0,0.0684434]
[1765220697711,0.00894358,90065.0,90064.0,0.0694434]
[1765220698918,0.00294358,90065.0,90064.0,0.0684434]
[1765220699906,0.05993358,90065.0,90064.0,0.0684434]
[1765220700524,0.00294358,90065.0,90064.0,0.0684434]
[1765220700816,0.05699,90061.0,90060.0,0.0684438]
[1765220701218,0.00294358,90065.0,90064.0,0.0684434]
[1765220701822,0.00094358,90065.0,90064.0,0.0684434]
[1765220702018,0.05793358,90065.0,90064.0,0.0684434]
[1765220702217,0.05793358,90065.0,90064.0,0.02931]
[1765220702522,0.05699,90056.0,90055.0,0.00016655]
[1765220703413,0.05993358,90065.0,90064.0,0.05734]
[1765220703618,0.05993358,90065.0,90064.0,0.02931]
[1765220703918,0.03227358,90065.0,90064.0,0.0684434]
[1765220704216,0.00094358,90065.0,90064.0,0.0684434]
[1765220705013,0.001,90065.0,90064.0,0.0111034]
[1765220705217,0.00016613,90074.0,90073.0,0.0684423]
[1765220705813,0.00111001,90090.0,90089.0,0.0684403]
[1765220707318,0.0110968,90118.0,90107.0,0.011098]
[1765220707519,0.05748,90114.0,90113.0,0.05595]
[1765220707716,0.02898,90103.0,90102.0,0.05611655]
[1765220708117,0.02898,90107.0,90106.0,0.0110982]
[1765220708423,0.02898,90107.0,90106.0,0.06896931]
[1765220708719,0.05748,90107.0,90106.0,0.05595]
[1765220708919,0.05748,90107.0,90106.0,0.04164615]
[1765220709121,0.05748,90107.0,90106.0,0.01353615]
[1765220709420,0.05748,90107.0,90102.0,0.00016655]
[1765220709421,0.02898,90104.0,90103.0,0.0392085]
[1765220709620,0.02898,90104.0,90103.0,0.0670485]
[1765220709916,0.0110974,90113.0,90103.0,0.0670485]
[1765220709917,0.05748,90110.0,90109.0,0.0392078]
[1765220710117,0.05748,90110.0,90109.0,0.02811]
[1765220710615,0.05748,90106.0,90105.0,0.02811]
[1765220710821,0.05748,90106.0,90105.0,0.05595]
[1765220711022,0.05748,90104.0,90103.0,0.01312962]
[1765220711230,0.05748,90103.0,90102.0,0.00016655]
[1765220711416,0.05748,90103.0,90102.0,0.02827655]
[1765220711614,0.002,90110.0,90106.0,0.0110982]
[1765220711814,0.05748,90107.0,90106.0,0.0392082]
[1765220712015,0.05748,90107.0,90106.0,0.02811]
[1765220712212,0.05593,90103.0,90102.0,0.02999655]
[1765220712407,0.05593,90103.0,90102.0,0.00016655]
[1765220713007,0.05593,90082.0,90073.0,0.0111023]
[1765220713208,0.01168,90090.0,90073.0,0.04326419]
[1765220713209,0.05593,90074.0,90073.0,0.04326419]
[1765220713514,0.05593,90068.0,90067.0,0.069813]
[1765220713709,0.05593,90068.0,90067.0,0.02983]
[1765220713913,0.0111027,90070.0,90061.0,0.0111037]
[1765220714113,0.0670327,90070.0,90069.0,0.05871]
[1765220714318,0.05593,90070.0,90069.0,0.05871]
[1765220715123,0.00016655,90075.0,90074.0,0.05871]
[1765220716017,0.23098749,90110.0,90073.0,0.0111023]
[1765220716018,0.0110984,90105.0,90073.0,0.0111023]
[1765220716221,0.0110984,90105.0,90090.0,0.23098749]
[1765220716417,0.01715,90112.0,90090.0,0.23098749]
[1765220716619,0.02707,90101.0,90100.0,0.28969749]
[1765220716824,0.02707,90101.0,90100.0,0.05871]
[1765220717018,0.02707,90101.0,90100.0,0.0698089]
[1765220717218,0.0110977,90111.0,90104.0,0.0110984]
[1765220717423,0.05693,90105.0,90104.0,0.0698084]
[1765220717818,0.02807,90105.0,90104.0,0.0698084]
[1765220718127,0.02707,90105.0,90104.0,0.0698084]
[1765220718520,0.02707,90110.0,90109.0,0.0698077]
[1765220718718,0.05593,90110.0,90109.0,0.0698077]
[1765220718914,0.0011097,90115.0,90107.0,0.0409281]
[1765220718915,0.05593,90108.0,90107.0,0.0409281]
[1765220719116,0.05593,90108.0,90107.0,0.05871]
[1765220719316,0.0011097,90115.0,90091.0,0.00016655]
[1765220719317,0.0110992,90098.0,90091.0,0.01126655]
[1765220719627,0.05593,90092.0,90091.0,0.00016655]
[1765220722128,0.08240176,90092.0,90091.0,0.00016655]
[1765220722530,0.05593,90070.0,90069.0,0.02438676]
[1765220722734,0.0171,90084.0,90058.0,0.30219]
[1765220722735,0.05593,90059.0,90058.0,0.30219]
[1765220723026,0.05593,90059.0,90058.0,0.33107]
[1765220723424,0.02707,90059.0,90058.0,0.33107]
[1765220724025,0.05593,90067.0,90066.0,0.0698131]
[1765220724413,0.00016655,90068.0,90067.0,0.05871]
[1765220724819,0.02723655,90068.0,90067.0,0.05871]
[1765220725021,0.06719945,90068.0,90067.0,0.05871]
[1765220725230,0.02707,90086.0,90085.0,0.0111008]
[1765220725418,0.02707,90086.0,90073.0,0.0111023]
[1765220725419,0.0111014,90081.0,90073.0,0.0111023]
[1765220725622,0.02707,90078.0,90077.0,0.0409317]
[1765220726031,0.02707,90078.0,90077.0,0.0698117]
[1765220726921,0.0111018,90077.0,90071.0,0.0111025]
[1765220727422,0.05593,90072.0,90071.0,0.0111025]
[1765220727622,0.05593,90072.0,90071.0,0.0409325]
[1765220728028,0.05593,90069.0,90068.0,0.00016655]
[1765220728821,0.05593,90069.0,90068.0,0.05887655]
[1765220729024,0.0670325,90071.0,90070.0,0.05871]
[1765220729332,0.05593,90069.0,90068.0,0.00216655]
[1765220730227,0.05593,90069.0,90068.0,0.06087655]
[1765220730422,0.0670325,90071.0,90070.0,0.002]
[1765220730823,0.0670325,90071.0,90070.0,0.06071]
[1765220731134,0.0670325,90071.0,90070.0,0.002]
[1765220731527,0.05593,90071.0,90070.0,0.002]
[1765220731829,0.05593,90071.0,90070.0,0.003]
[1765220732029,0.05593,90071.0,90070.0,0.001]
[1765220732530,0.0111028,90069.0,90040.0,0.00111062]
[1765220732725,0.05593,90045.0,90044.0,0.0111057]
[1765220733038,0.0111037,90062.0,90056.0,0.0111043]
[1765220733332,0.067034,90059.0,90054.0,0.0111045]
[1765220733523,0.0111046,90054.0,90051.0,0.011105]
[1765220733723,0.02707,90052.0,90051.0,0.069815]
[1765220734927,0.02707,90057.0,90056.0,0.0409344]
[1765220735131,0.05593,90057.0,90056.0,0.0409344]
[1765220735329,0.05593,90057.0,90056.0,0.02983]
[1765220735735,0.05593,90057.0,90056.0,0.05871]
[1765220736034,0.06719975,90066.0,90065.0,0.05871]
[1765220736224,0.00016655,90066.0,90065.0,0.05871]
[1765220737534,0.02723655,90066.0,90065.0,0.05871]
[1765220737724,0.02723655,90066.0,90065.0,0.06071]
[1765220737925,0.06719965,90066.0,90065.0,0.06071]
[1765220738128,0.05609655,90066.0,90065.0,0.06071]
[1765220738436,0.05609655,90066.0,90065.0,0.003]
[1765220738633,0.08259923,90066.0,90065.0,0.003]
[1765220739732,0.08259923,90066.0,90065.0,0.001]
[1765220739926,0.08259923,90066.0,90065.0,0.003]
[1765220740329,0.08259923,90066.0,90065.0,0.001]
[1765220740529,0.08359923,90066.0,90065.0,0.001]
[1765220740926,0.08259923,90066.0,90065.0,0.001]
[1765220741128,0.05593,90063.0,90062.0,0.0111036]
[1765220741432,0.05593,90063.0,90062.0,0.0409336]
[1765220741639,0.05593,90063.0,90062.0,0.0111036]
[1765220742732,0.0111033,90065.0,90050.0,0.0111051]
[1765220742733,0.02708,90051.0,90050.0,0.0111051]
[1765220742934,0.05554,90051.0,90050.0,0.0385751]
[1765220743330,0.05554,90051.0,90050.0,0.0684851]
[1765220743633,0.066645,90051.0,90050.0,0.02747]
[1765220743832,0.01771,90057.0,90047.0,0.00016655]
[1765220743833,0.0666454,90048.0,90047.0,0.00016655]
[1765220745541,0.05554,90048.0,90047.0,0.00016655]
[1765220745836,0.05554,90055.0,90054.0,0.0385746]
[1765220746034,0.05554,90055.0,90054.0,0.0684846]
[1765220746830,0.05554,90055.0,90054.0,0.05738]
[1765220747035,0.02708,90048.0,90047.0,0.07065205]
[1765220747230,0.0666443,90057.0,90056.0,0.02747]
[1765220747725,0.05554,90060.0,90059.0,0.0111039]
[1765220747932,0.05554,90060.0,90059.0,0.0385739]
[1765220748133,0.05554,90060.0,90059.0,0.0684839]
[1765220748134,0.02708,90060.0,90059.0,0.0684839]
[1765220748337,0.05570655,90066.0,90065.0,0.0684833]
[1765220748539,0.05570655,90066.0,90065.0,0.05738]
[1765220748932,0.00016655,90066.0,90065.0,0.05738]
[1765220749930,0.00116655,90066.0,90065.0,0.05738]
[1765220750536,0.00116655,90066.0,90065.0,0.05938]
[1765220750537,0.00016655,90066.0,90065.0,0.05938]
[1765220750839,0.01821001,90090.0,90081.0,0.0111012]
[1765220751031,0.0111018,90077.0,90070.0,0.23098749]
[1765220751231,0.05554,90078.0,90077.0,0.05738]
[1765220751638,0.05554,90074.0,90073.0,0.0684822]
[1765220752445,0.066641,90084.0,90083.0,0.05738]
[1765220752638,0.02819001,90090.0,90089.0,0.05738]
[1765220753645,0.05665001,90090.0,90089.0,0.05738]
[1765220753839,0.00211001,90090.0,90089.0,0.05738]
[1765220754232,0.00111001,90090.0,90089.0,0.05738]
[1765220754737,0.0110978,90110.0,90109.0,0.05738]
[1765220755041,0.0666378,90110.0,90109.0,0.05738]
[1765220756040,0.001,90110.0,90109.0,0.0704508]
[1765220756942,0.05654,90110.0,90109.0,0.0130708]
[1765220757246,0.02708,90105.0,90104.0,0.0684784]
[1765220757946,0.003,90110.0,90104.0,0.0684784]
[1765220757947,0.03008,90110.0,90109.0,0.02747]
[1765220758137,0.003,90110.0,90109.0,0.05738]
[1765220758334,0.07913747,90152.0,90107.0,0.0110981]
[1765220758335,0.0110944,90138.0,90114.0,0.0110972]
[1765220758538,0.05554,90134.0,90133.0,0.05738]
[1765220759633,0.02708,90134.0,90133.0,0.05738]
[1765220759938,0.02508,90134.0,90133.0,0.05738]
[1765220760137,0.05354,90134.0,90133.0,0.05738]
[1765220760341,0.0646348,90134.0,90133.0,0.05738]
[1765220760737,0.05354,90134.0,90133.0,0.05738]
[1765220760937,0.05554,90134.0,90133.0,0.05738]
[1765220761147,0.05554,90125.0,90124.0,0.00016644]
[1765220763035,0.05554,90125.0,90124.0,0.02763644]
[1765220763250,0.05654,90125.0,90124.0,0.00016644]
[1765220764456,0.05554,90125.0,90124.0,0.00116644]
[1765220764749,0.05554,90125.0,90124.0,0.00216644]
[1765220765151,0.05554,90125.0,90124.0,0.00016644]
[1765220765940,0.0666359,90125.0,90124.0,0.00016644]
[1765220766444,0.011095,90133.0,90124.0,0.00016644]
[1765220766649,0.05717,90133.0,90132.0,0.05575]
[1765220767247,0.05717,90133.0,90124.0,0.00016644]
[1765220767248,0.00110939,90140.0,90139.0,0.05575]
[1765220768250,0.02849939,90140.0,90139.0,0.05575]
[1765220768547,0.03049939,90140.0,90139.0,0.05575]
[1765220768757,0.00310939,90140.0,90139.0,0.05575]
[1765220769052,0.00310939,90140.0,90130.0,0.23098749]
[1765220769053,0.00310939,90140.0,90123.0,0.0168]
[1765220769245,0.03049939,90140.0,90139.0,0.05575]
[1765220769547,0.03049939,90140.0,90132.0,0.027895]
[1765220769548,0.0110945,90136.0,90132.0,0.027895]
[1765220769756,0.0682645,90136.0,90135.0,0.02858]
[1765220770052,0.05717,90136.0,90135.0,0.0668446]
[1765220770248,0.02739,90136.0,90135.0,0.05575]
[1765220770443,0.05827939,90140.0,90139.0,0.02858]
[1765220770647,0.05827939,90140.0,90132.0,0.0168]
[1765220770953,0.05717,90134.0,90133.0,0.0110949]
[1765220771152,0.05717,90134.0,90133.0,0.0668449]
[1765220771346,0.0682648,90134.0,90133.0,0.02858]
[1765220772141,0.05817,90134.0,90133.0,0.05575]
[1765220772754,0.001,90134.0,90133.0,0.05575]
[1765220773155,0.05555,90129.0,90128.0,0.0695755]
[1765220773451,0.001,90134.0,90133.0,0.05848]
[1765220774249,0.0110944,90138.0,90134.0,0.0110948]
[1765220774452,0.0666444,90138.0,90137.0,0.02908]
[1765220774648,0.0666444,90138.0,90137.0,0.05848]
[1765220775751,0.05555,90138.0,90137.0,0.05848]
[1765220776645,0.05755,90138.0,90137.0,0.05848]
[1765220776851,0.0666454,90129.0,90128.0,0.05848]
[1765220777252,0.05555,90129.0,90128.0,0.05848]
[1765220778060,0.02816,90129.0,90128.0,0.05848]
[1765220778459,0.05555,90129.0,90128.0,0.05848]
[1765220778664,0.00110939,90140.0,90124.0,0.02924644]
[1765220778665,0.0666459,90125.0,90124.0,0.02924644]
[1765220778860,0.0666459,90125.0,90124.0,0.05864644]
[1765220779057,0.05555,90125.0,90124.0,0.05864644]
[1765220779454,0.01628,90134.0,90124.0,0.05864644]
[1765220779455,0.05555,90134.0,90133.0,0.05848]
[1765220779658,0.05555,90134.0,90124.0,0.00016644]
[1765220779864,0.02816,90125.0,90124.0,0.05864644]
[1765220780068,0.05555,90125.0,90124.0,0.05864644]
[1765220782357,0.02816,90125.0,90124.0,0.05864644]
[1765220782669,0.0110959,90126.0,90125.0,0.05848]
[1765220782870,0.0666459,90126.0,90125.0,0.05848]
[1765220783071,0.05555,90125.0,90124.0,0.00016644]
[1765220783569,0.05555,90125.0,90124.0,0.05864644]
[1765220783964,0.05555,90135.0,90134.0,0.0695748]
[1765220784264,0.08203795,90135.0,90134.0,0.05848]
[1765220784470,0.05464795,90135.0,90134.0,0.05848]
[1765220784660,0.02648795,90135.0,90134.0,0.05848]
[1765220785875,0.05464795,90135.0,90134.0,0.05848]
[1765220786080,0.0666458,90126.0,90125.0,0.05848]
[1765220786368,0.05555,90126.0,90125.0,0.05848]
[1765220786872,0.0666451,90132.0,90131.0,0.05848]
[1765220787174,0.0931728,90132.0,90131.0,0.05848]
[1765220787369,0.0820777,90132.0,90131.0,0.05848]
[1765220787566,0.0546877,90132.0,90131.0,0.05848]
[1765220787869,0.0820777,90132.0,90131.0,0.05848]
[1765220789374,0.0820777,90132.0,90124.0,0.00016644]
[1765220789375,0.0666459,90125.0,90124.0,0.00016644]
[1765220789570,0.0931736,90125.0,90124.0,0.00016644]
[1765220790561,0.0820777,90125.0,90124.0,0.05864644]
[1765220790966,0.0820777,90125.0,90124.0,0.02924644]
[1765220791169,0.0820777,90125.0,90124.0,0.05864644]
[1765220791660,0.0265277,90125.0,90124.0,0.05864644]
[1765220791858,0.09319238,90134.0,90133.0,0.05848]
[1765220793073,0.08309758,90134.0,90133.0,0.05848]
[1765220793474,0.05570758,90134.0,90133.0,0.05848]
[1765220794073,0.02754758,90134.0,90133.0,0.05848]
[1765220795268,0.001,90134.0,90133.0,0.05848]
[1765220796174,0.05921079,90159.0,90158.0,0.05848]
[1765220796472,0.02642725,90159.0,90158.0,0.05848]
[1765220796878,0.05458725,90159.0,90158.0,0.05848]
[1765220797069,0.08197725,90159.0,90158.0,0.07124221]
[1765220797672,0.05458725,90159.0,90158.0,0.07124221]
[1765220798073,0.02642725,90159.0,90158.0,0.07124221]
[1765220798278,0.02842725,90159.0,90158.0,0.07124221]
[1765220798670,0.08397725,90159.0,90158.0,0.07124221]
[1765220798870,0.08397725,90159.0,90158.0,0.04184221]
[1765220799376,0.07183,90150.0,90149.0,0.00016644]
[1765220800470,0.07183,90150.0,90149.0,0.02924644]
[1765220800671,0.05555,90150.0,90149.0,0.07109372]
[1765220801881,0.05,90162.0,90161.0,0.0294]
[1765220802079,0.05,90162.0,90161.0,0.05848]
[1765220803672,1e-08,90165.0,90164.0,0.05569]
[1765220804886,1e-08,90165.0,90164.0,0.05969]
[1765220805082,1e-08,90165.0,90164.0,0.06169]
[1765220807386,0.02753198,90189.0,90188.0,0.05569]
[1765220807682,0.02753198,90189.0,90188.0,0.0667781]
[1765220807683,0.05689198,90189.0,90188.0,0.0667781]
[1765220808189,0.00022198,90189.0,90188.0,0.0667781]
[1765220808579,0.00122198,90189.0,90188.0,0.0667781]
[1765220809183,0.05789198,90189.0,90188.0,0.0110881]
[1765220809384,0.05667,90186.0,90185.0,0.0110885]
[1765220809684,0.05667,90186.0,90185.0,0.0667785]
[1765220810080,0.00122198,90189.0,90188.0,0.0667781]
[1765220810280,0.00022198,90189.0,90188.0,0.0667781]
[1765220811290,0.00122198,90189.0,90188.0,0.0667781]
[1765220812490,0.05777847,90215.0,90214.0,0.05569]
[1765220812787,0.05667,90206.0,90205.0,0.05585634]
[1765220812991,0.05667,90206.0,90205.0,0.00016634]
[1765220814091,0.05767,90206.0,90205.0,0.00016634]
[1765220814389,0.05667,90168.0,90167.0,0.0110906]
[1765220814586,0.05667,90162.0,90161.0,0.02768512]
[1765220814787,0.05667,90162.0,90161.0,8.512e-05]
[1765220815586,0.05667,90153.0,90152.0,0.00016634]
[1765220816595,0.05675512,90153.0,90152.0,0.00016634]
[1765220817102,0.05675512,90153.0,90152.0,0.00316634]
[1765220818193,0.05675512,90153.0,90152.0,0.03076634]
[1765220818393,0.05675512,90153.0,90152.0,0.06285634]
[1765220819093,8.512e-05,90153.0,90152.0,0.06285634]
[1765220820495,0.05676512,90153.0,90152.0,0.00716634]
[1765220820696,0.05676512,90153.0,90152.0,0.03542634]
[1765220820999,0.05676512,90153.0,90152.0,0.06265634]
[1765220821000,8.512e-05,90153.0,90152.0,0.06265634]
[1765220821199,0.00016565,90171.0,90170.0,0.0665803]
[1765220822487,0.05668,90196.0,90191.0,0.0110876]
[1765220822691,0.05668,90192.0,90191.0,0.0393476]
[1765220822891,0.05668,90192.0,90191.0,0.0110876]
[1765220823087,0.07316,90192.0,90180.0,0.30773502]
[1765220823291,0.05668,90179.0,90178.0,0.0110893]
[1765220823687,0.05668,90179.0,90178.0,0.0393493]
[1765220823899,0.05668,90179.0,90178.0,0.0665793]
[1765220824301,0.05668,90189.0,90188.0,0.011088]
[1765220824601,0.05668,90189.0,90169.0,0.00016634]
[1765220824602,0.002,90192.0,90191.0,0.0665778]
[1765220824992,0.05668,90183.0,90170.0,0.29017502]
[1765220825197,0.05668,90183.0,90182.0,0.0665789]
[1765220825399,0.07516,90192.0,90191.0,0.0110878]
[1765220825595,0.05868,90192.0,90191.0,0.0110878]
[1765220825788,0.005,90192.0,90191.0,0.0665778]
[1765220826297,0.02813847,90215.0,90214.0,0.02826]
[1765220826498,0.05778847,90215.0,90214.0,0.02826]
[1765220827091,0.05778847,90215.0,90214.0,0.05549]
[1765220827307,0.00110847,90215.0,90214.0,0.05549]
[1765220827494,0.05978847,90215.0,90214.0,0.02826]
[1765220828004,0.06378847,90215.0,90214.0,0.05549]
[1765220828196,0.06378847,90215.0,90214.0,0.06823252]
[1765220828197,0.00710847,90215.0,90214.0,0.06823252]
[1765220828400,0.00310847,90215.0,90214.0,0.06823252]
[1765220828612,0.05978847,90215.0,90214.0,0.01374252]
[1765220828798,0.05978847,90215.0,90214.0,0.06923252]
[1765220829099,0.05778847,90215.0,90214.0,0.04200252]
[1765220829305,0.05778847,90215.0,90214.0,0.001]
[1765220830605,0.05778847,90215.0,90205.0,0.00016634]
[1765220830606,0.05668,90206.0,90205.0,0.00016634]
[1765220830807,0.05668,90180.0,90179.0,0.00010091]
[1765220831103,0.07316,90180.0,90179.0,0.00010091]
[1765220831700,0.02703,90162.0,90161.0,0.05549]
[1765220831903,0.02703,90156.0,90155.0,0.02348401]
[1765220832107,0.05668,90156.0,90155.0,0.02348401]
[1765220832511,0.05668,90156.0,90155.0,0.05174401]
[1765220832807,0.05678091,90156.0,90155.0,0.06772191]
[1765220833512,0.02882,90153.0,90152.0,0.00016634]
[1765220833701,0.0567,90153.0,90152.0,0.00016634]
[1765220834105,0.0567,90153.0,90152.0,0.01125884]
[1765220834410,0.02882,90153.0,90152.0,0.06781884]
[1765220834804,0.00010091,90156.0,90155.0,0.05656]
[1765220835212,0.05680091,90156.0,90155.0,0.05656]
[1765220835912,0.00010091,90156.0,90155.0,0.05656]
[1765220836114,0.00010091,90156.0,90155.0,0.05856]
[1765220836711,0.05680091,90156.0,90155.0,0.05856]
[1765220836914,0.05680091,90156.0,90155.0,0.03949]
[1765220837204,0.00010091,90156.0,90155.0,0.06656]
[1765220838517,0.02892091,90156.0,90155.0,0.06656]
[1765220838913,0.07332091,90156.0,90155.0,0.01]
[1765220839407,0.05680091,90156.0,90155.0,0.06656]
[1765220839608,0.00010091,90156.0,90155.0,0.06656]
[1765220839805,0.00010091,90156.0,90155.0,0.05656]
[1765220840000,0.00010091,90156.0,90155.0,0.06656]
[1765220840510,0.00010091,90156.0,90155.0,0.06556]
[1765220840914,0.05680091,90156.0,90155.0,0.06556]
[1765220841101,0.07332091,90156.0,90155.0,0.009]
[1765220841302,0.07332091,90156.0,90155.0,0.007]
[1765220841616,0.07332091,90156.0,90155.0,0.002]
[1765220841818,0.07332091,90156.0,90155.0,0.01]
[1765220842018,0.00010091,90156.0,90155.0,0.06656]